bitfinex-derivatives/quotes_SOLF0:USTF0_20250714
["timestamp","ask_amount","ask_price","bid_price","bid_amount"]
[1752485896041,3.32,167.49,167.48,3.64]
[1752485896834,27.85569146,167.56,167.48,3.13755496]
[1752485896835,3.32,167.56,167.48,3.13755496]
[1752485897039,3.32,167.56,167.55,6.77755496]
[1752485897241,3.32,167.61,167.59,5.9658]
[1752485897442,3.32,167.61,167.55,3.64]
[1752485897737,3.13755496,167.68,167.53,9.6079]
[1752485897738,3.32,167.59,167.53,9.6079]
[1752485897940,3.32,167.6,167.56,3.64]
[1752485898141,3.32,167.6,167.58,3.64]
[1752485899737,6.69672921,167.64,167.58,3.64]
[1752485899938,3.32,167.59,167.58,3.64]
[1752485901850,3.32,167.59,167.56,5.967]
[1752485901851,3.32,167.58,167.54,3.13442926]
[1752485902042,6.69672921,167.63,167.56,6.77442926]
[1752485902345,3.32,167.62,167.57,3.64]
[1752485903145,3.32,167.62,167.58,6.77442926]
[1752485903537,3.32,167.62,167.59,3.64]
[1752485904038,3.32,167.62,167.58,6.77442926]
[1752485904237,3.32,167.62,167.58,3.64]
[1752485904544,3.32,167.62,167.59,3.64]
[1752485904740,3.32,167.62,167.57,3.64]
[1752485905137,3.32,167.62,167.58,3.64]
[1752485905439,3.32,167.62,167.56,9.10142926]
[1752485905643,3.32,167.62,167.57,3.64]
[1752485905946,3.32,167.62,167.58,3.64]
[1752485908445,3.32,167.62,167.59,3.64]
[1752485909247,3.32,167.62,167.53,5.968]
[1752485909447,3.32,167.62,167.54,6.77442926]
[1752485909448,6.45442926,167.62,167.54,6.77442926]
[1752485909644,3.32,167.61,167.55,3.64]
[1752485909844,3.32,167.61,167.57,3.64]
[1752485910047,3.32,167.61,167.58,3.64]
[1752485910645,3.32,167.65,167.58,3.13442926]
[1752485910845,3.32,167.65,167.59,3.64]
[1752485913945,3.32,167.65,167.6,3.64]
[1752485914353,3.32,167.65,167.61,3.64]
[1752485914544,3.32,167.65,167.62,3.64]
[1752485915849,3.13442926,167.65,167.5,3.64]
[1752485916150,3.32,167.62,167.56,3.64]
[1752485916352,3.32,167.62,167.56,9.6069]
[1752485916552,3.32,167.62,167.56,5.9669]
[1752485916753,3.32,167.62,167.58,3.64]
[1752485916952,3.32,167.62,167.57,5.9667]
[1752485917143,3.32,167.62,167.59,3.64]
[1752485918453,3.32,167.62,167.6,3.64]
[1752485919149,3.32,167.62,167.58,3.64]
[1752485919352,3.13442926,167.66,167.58,6.77442926]
[1752485919555,3.32,167.63,167.59,3.64]
[1752485920250,3.13442926,167.66,167.59,3.64]
[1752485920251,3.32,167.62,167.59,3.64]
[1752485921051,3.32,167.67,167.6,3.13442926]
[1752485921252,3.32,167.67,167.61,3.64]
[1752485921953,3.32,167.68,167.63,3.64]
[1752485922156,3.32,167.68,167.6,3.13442926]
[1752485922451,3.32,167.68,167.61,3.64]
[1752485922647,3.29,167.66,167.61,3.64]
[1752485922849,3.29,167.66,167.61,3.57]
[1752485923756,3.29,167.68,167.63,5.9644]
[1752485924058,3.29,167.68,167.62,3.13442926]
[1752485924059,3.29,167.67,167.64,3.57]
[1752485924252,174.78,167.69,167.64,9.534]
[1752485924458,3.29,167.68,167.65,3.57]
[1752485925253,174.78,167.69,167.66,3.13442926]
[1752485925460,174.78,167.69,167.67,3.57]
[1752485925650,3.29,167.71,167.68,3.57]
[1752485926356,3.29,167.71,167.67,3.57]
[1752485926660,3.29,167.73,167.67,3.57]
[1752485927054,3.29,167.72,167.69,3.57]
[1752485927259,3.29,167.72,167.7,3.57]
[1752485927455,3.29,167.71,167.69,3.57]
[1752485927654,3.29,167.71,167.7,3.57]
[1752485928562,0.0430897,167.72,167.7,3.57]
[1752485928952,0.0430897,167.72,167.69,6.00151752]
[1752485929156,3.29,167.71,167.69,0.03931752]
[1752485929559,3.3330897,167.72,167.69,0.03931752]
[1752485929863,3.3330897,167.72,167.7,3.57]
[1752485931871,3.3330897,167.72,167.69,6.00151752]
[1752485931872,3.29,167.71,167.69,6.00151752]
[1752485932070,3.29,167.71,167.69,0.03931752]
[1752485932463,3.29,167.7,167.58,3.57]
[1752485932662,3.29,167.68,167.62,3.57]
[1752485933273,3.29,167.68,167.61,3.13442926]
[1752485933472,3.29,167.68,167.65,3.57]
[1752485933672,0.03900971,167.66,167.65,3.57]
[1752485933972,3.32900971,167.66,167.65,3.57]
[1752485935567,0.03900971,167.66,167.65,3.57]
[1752485936673,3.32900971,167.66,167.65,3.57]
[1752485939876,0.03900971,167.66,167.65,3.57]
[1752485940077,3.32900971,167.66,167.65,3.57]
[1752485940869,3.29,167.65,167.58,3.57]
[1752485941076,3.29,167.63,167.58,3.57]
[1752485941476,3.29,167.63,167.61,3.57]
[1752485941672,0.04453916,167.62,167.61,3.57]
[1752485942185,0.04453916,167.62,167.61,9.5353]
[1752485942381,0.04453916,167.62,167.61,5.9653]
[1752485942582,0.04453916,167.62,167.61,9.5353]
[1752485943281,3.29,167.64,167.63,9.5346]
[1752485943477,3.29,167.65,167.64,3.57]
[1752485943686,3.13442926,167.69,167.59,3.13442926]
[1752485943881,3.29,167.68,167.65,3.57]
[1752485944181,3.13442926,167.67,167.57,20.77929896]
[1752485944389,3.29,167.62,167.54,3.57]
[1752485944587,3.29,167.62,167.56,3.57]
[1752485945485,3.29,167.62,167.61,5.9653]
[1752485945686,3.29,167.62,167.61,9.5353]
[1752485946784,3.13442926,167.67,167.63,3.57]
[1752485946986,3.29,167.66,167.63,3.57]
[1752485947689,3.29,167.65,167.64,3.57]
[1752485948988,3.29,167.65,167.63,3.61289251]
[1752485949589,0.04161034,167.66,167.63,3.61289251]
[1752485949788,3.29,167.64,167.63,3.61289251]
[1752485951892,3.29,167.64,167.63,0.04289251]
[1752485952288,6.42442926,167.64,167.63,0.04289251]
[1752485952993,6.42442926,167.64,167.53,527.4958]
[1752485952994,3.31,167.63,167.55,3.55]
[1752485953293,3.31,167.61,167.55,3.55]
[1752485954088,0.0392624,167.6,167.55,3.55]
[1752485954494,3.3492624,167.6,167.55,3.55]
[1752485954886,3.31,167.59,167.55,3.55]
[1752485955090,3.31,167.59,167.58,9.5163]
[1752485955292,0.0392624,167.6,167.59,3.55]
[1752485955489,0.0392624,167.6,167.59,9.516]
[1752485955686,3.13442926,167.64,167.59,5.966]
[1752485955892,3.35470437,167.61,167.6,3.55]
[1752485956088,0.04470437,167.61,167.6,9.5157]
[1752485957591,0.04470437,167.61,167.6,12.65012926]
[1752485962395,3.31,167.65,167.64,9.5143]
[1752485963388,3.31,167.65,167.63,5.9645]
[1752485963591,3.31,167.65,167.61,3.55]
[1752485963986,3.31,167.65,167.61,9.5151]
[1752485964887,3.31,167.64,167.6,5.9655]
[1752485965091,3.31,167.64,167.57,3.13442926]
[1752485965294,3.31,167.64,167.58,3.55]
[1752485965488,3.31,167.64,167.61,5.9651]
[1752485965893,3.31,167.64,167.6,9.5155]
[1752485966998,3.31,167.64,167.61,9.5153]
[1752485967193,5.9645,167.64,167.61,3.55]
[1752485967400,3.31,167.63,167.61,3.55]
[1752485968098,3.31,167.64,167.61,3.13442926]
[1752485968296,3.31,167.64,167.62,3.55]
[1752485969196,3.31,167.64,167.63,9.5143]
[1752485972403,3.31,167.64,167.63,3.55]
[1752485974103,3.31,167.64,167.63,9.5146]
[1752485975606,3.31,167.66,167.64,3.55]
[1752485976103,3.31,167.66,167.63,9.5146]
[1752485976305,3.31,167.66,167.63,3.55]
[1752485976906,3.31,167.66,167.63,9.5144]
[1752485977107,3.31,167.66,167.64,3.55]
[1752485977306,3.31,167.66,167.65,5.9639]
[1752485977508,3.31,167.66,167.65,3.55]
[1752485977808,3.31,167.66,167.64,3.55]
[1752485979107,3.31,167.66,167.6,3.13442926]
[1752485979309,3.31,167.66,167.62,3.13442926]
[1752485979504,3.31,167.67,167.64,5.964]
[1752485979703,3.31,167.67,167.65,3.55]
[1752485981301,3.31,167.67,167.65,9.5138]
[1752485981709,3.31,167.67,167.65,3.55]
[1752485982605,5.00206293,167.68,167.65,5.9637]
[1752485982802,3.4,167.66,167.65,5.9637]
[1752485983214,3.4,167.66,167.65,9.3837]
[1752485985316,3.4,167.67,167.65,5.9637]
[1752485985510,3.4,167.67,167.66,3.42]
[1752485986314,3.4,167.68,167.67,3.42]
[1752485988312,3.4,167.69,167.67,3.42]
[1752485988610,3.4,167.69,167.68,3.42]
[1752485990415,3.4,167.69,167.67,3.46023388]
[1752485992315,3.4,167.69,167.68,3.42]
[1752485996314,3.4,167.69,167.67,0.04023388]
[1752485996515,11.55417033,167.69,167.67,0.04023388]
[1752485996710,8.41974107,167.68,167.63,3.42]
[1752485997021,3.4,167.67,167.63,9.3844]
[1752485997717,3.4,167.67,167.64,3.42]
[1752485997920,3.4,167.67,167.63,5.9644]
[1752485998119,3.43913308,167.67,167.65,3.42]
[1752486000316,3.4,167.66,167.61,3.42]
[1752486000922,3.4,167.64,167.63,3.42]
[1752486003421,3.4,167.64,167.63,9.3846]
[1752486006427,3.4,167.64,167.63,3.42]
[1752486008123,0.03867172,167.65,167.63,9.3846]
[1752486008427,3.43867172,167.65,167.64,3.42]
[1752486008827,3.4,167.65,167.64,3.42]
[1752486009521,0.03932,167.66,167.64,3.42]
[1752486009723,0.03932,167.66,167.65,5.9639]
[1752486009929,0.03932,167.66,167.65,9.3839]
[1752486010332,3.43932,167.66,167.65,9.3839]
[1752486011033,3.43932,167.66,167.65,3.42]
[1752486011329,0.03932,167.66,167.63,3.42]
[1752486011536,0.03932,167.66,167.65,3.42]
[1752486011729,0.03932,167.66,167.65,9.3839]
[1752486013240,3.64932,167.66,167.65,9.3839]
[1752486013835,0.03932,167.66,167.65,9.3839]
[1752486014235,8.62974107,167.7,167.66,3.4]
[1752486014538,3.61,167.69,167.66,3.4]
[1752486014739,5.01974107,167.71,167.57,11.9333]
[1752486014740,5.01974107,167.7,167.63,3.13442926]
[1752486014939,3.61,167.67,167.63,3.13442926]
[1752486015340,3.61,167.67,167.64,3.4]
[1752486015536,3.61,167.67,167.66,3.4]
[1752486015734,3.61,167.67,167.62,3.4]
[1752486016134,3.61,167.67,167.61,3.13442926]
[1752486016336,3.61,167.66,167.61,3.13442926]
[1752486016740,3.61,167.66,167.64,5.964]
[1752486017040,5.9633,167.67,167.65,3.4]
[1752486017234,8.15417033,167.69,167.65,9.3639]
[1752486017433,3.61,167.68,167.65,9.3639]
[1752486017644,5.963,167.68,167.65,9.3639]
[1752486017942,3.61,167.67,167.64,5.964]
[1752486018140,3.61,167.67,167.65,3.4]
[1752486018840,5.9633,167.67,167.65,3.4]
[1752486019142,3.61,167.66,167.64,3.4]
[1752486020142,3.61,167.66,167.65,3.4]
[1752486021142,3.61,167.66,167.65,9.3639]
[1752486022242,8.62974107,167.68,167.64,3.4]
[1752486022442,3.61,167.67,167.64,3.4]
[1752486022845,3.61,167.67,167.66,5.9635]
[1752486023048,3.61,167.67,167.66,9.3635]
[1752486024238,3.61,167.67,167.65,5.9638]
[1752486024443,3.61,167.67,167.65,9.3638]
[1752486025039,3.61,167.67,167.65,3.4]
[1752486025242,3.61,167.66,167.6,3.4]
[1752486025448,3.61,167.64,167.6,3.4]
[1752486025749,3.61,167.64,167.62,3.4]
[1752486026249,3.61,167.64,167.62,5.9648]
[1752486026450,3.61,167.65,167.64,3.4]
[1752486026950,3.61,167.67,167.64,3.4]
[1752486027249,3.61,167.66,167.65,5.9636]
[1752486027450,3.61,167.67,167.66,3.4]
[1752486027646,3.61,167.67,167.6,3.13442926]
[1752486027847,3.61,167.66,167.63,5.9644]
[1752486028042,3.61,167.66,167.65,3.4]
[1752486028753,3.61,167.66,167.64,3.4]
[1752486030752,3.61,167.66,167.64,5.9642]
[1752486030951,3.61,167.66,167.65,3.4]
[1752486031952,3.61,167.67,167.65,3.4]
[1752486032450,3.61,167.66,167.65,3.4]
[1752486032955,3.61,167.66,167.65,9.3637]
[1752486033151,3.61,167.66,167.62,3.13442926]
[1752486033447,3.13442926,167.66,167.59,3.4]
[1752486033658,9.5741,167.65,167.59,3.4]
[1752486033843,3.61,167.64,167.62,5.9649]
[1752486034047,8.15417033,167.66,167.63,3.4]
[1752486034245,10.98334107,167.66,167.64,3.4]
[1752486034548,3.61,167.65,167.64,3.4]
[1752486034954,9.5739,167.65,167.64,3.4]
[1752486035143,9.5739,167.65,167.63,0.04481802]
[1752486035348,3.61,167.64,167.63,3.44481802]
[1752486036857,3.61,167.65,167.63,3.44481802]
[1752486037051,3.61,167.65,167.64,5.9643]
[1752486037257,3.65174316,167.66,167.65,3.4]
[1752486038258,8.67148423,167.66,167.63,0.04481802]
[1752486038560,3.61,167.65,167.63,0.04481802]
[1752486039060,3.61,167.64,167.63,3.44481802]
[1752486039462,3.65174316,167.66,167.63,9.40911802]
[1752486039654,3.61,167.65,167.63,3.44481802]
[1752486039849,5.06148423,167.66,167.63,0.04481802]
[1752486040055,0.04174316,167.66,167.64,3.4]
[1752486040356,5.06148423,167.66,167.64,3.4]
[1752486040555,3.61,167.65,167.64,3.4]
[1752486043363,0.04174316,167.66,167.63,0.04481802]
[1752486043760,3.48,167.64,167.63,9.51921802]
[1752486044365,3.48,167.65,167.64,5.9642]
[1752486044959,3.48,167.65,167.64,3.51]
[1752486045565,3.48,167.65,167.64,9.4743]
[1752486045957,3.48,167.65,167.64,3.51]
[1752486046157,3.48,167.65,167.64,9.4743]
[1752486046365,0.04174316,167.66,167.64,3.51]
[1752486046564,8.49974107,167.71,167.65,6.64442926]
[1752486046762,3.48,167.7,167.69,3.51]
[1752486047967,3.48,167.7,167.68,0.03761636]
[1752486048164,8.49974107,167.7,167.68,0.03761636]
[1752486048467,3.48,167.69,167.67,3.51]
[1752486048662,3.48,167.69,167.67,3.55465516]
[1752486049359,5.9625,167.69,167.67,0.04465516]
[1752486049563,3.48,167.68,167.67,0.04465516]
[1752486050466,3.48,167.68,167.67,3.55465516]
[1752486050863,9.4428,167.68,167.67,0.04465516]
[1752486051062,14.46254107,167.68,167.67,0.04465516]
[1752486051274,3.48,167.67,167.63,9.4743]
[1752486051760,10.98304107,167.67,167.64,3.51]
[1752486051963,3.48,167.66,167.64,3.51]
[1752486052163,3.48,167.66,167.62,9.4748]
[1752486052464,3.48,167.66,167.59,3.13442926]
[1752486052465,3.48,167.65,167.63,3.51]
[1752486052766,3.48,167.64,167.62,5.9648]
[1752486053162,3.48,167.64,167.63,3.51]
[1752486053665,3.48,167.65,167.64,3.51]
[1752486054867,9.4439,167.65,167.61,5.9652]
[1752486055068,3.48,167.64,167.63,3.51]
[1752486057365,3.48,167.64,167.59,3.51]
[1752486058669,3.48,167.64,167.63,3.51]
[1752486060869,5.01974107,167.67,167.63,3.51]
[1752486060870,3.48,167.66,167.63,3.51]
[1752486061064,3.48,167.65,167.63,3.51]
[1752486061265,3.48,167.66,167.64,3.51]
[1752486061568,3.48,167.66,167.63,5.9646]
[1752486061569,3.48,167.66,167.61,3.51]
[1752486061769,9.4437,167.66,167.62,5.9649]
[1752486061968,8.49974107,167.66,167.59,3.13442926]
[1752486062163,3.48,167.65,167.6,3.51]
[1752486062565,3.48,167.65,167.55,11.9343]
[1752486062566,8.49974107,167.67,167.64,3.51]
[1752486062871,3.48,167.66,167.64,9.4741]
[1752486063070,3.48,167.66,167.65,3.51]
[1752486064070,5.01974107,167.67,167.65,9.4737]
[1752486064369,8.49974107,167.67,167.66,3.51]
[1752486065073,3.48,167.66,167.62,3.51]
[1752486065275,3.48,167.66,167.64,3.51]
[1752486065976,3.48,167.66,167.65,3.51]
[1752486068268,3.48,167.65,167.63,3.51]
[1752486068979,3.48,167.65,167.63,9.4746]
[1752486069467,3.48,167.64,167.63,5.9646]
[1752486069969,3.48,167.64,167.63,9.4746]
[1752486072480,3.48,167.64,167.63,3.51]
[1752486072670,11.63417033,167.64,167.61,3.37]
[1752486072872,3.61,167.63,167.61,3.37]
[1752486073882,3.61,167.63,167.55,4.99454678]
[1752486074070,3.61,167.61,167.56,3.37]
[1752486074273,3.61,167.6,167.56,3.37]
[1752486074878,3.61,167.61,167.56,3.37]
[1752486075076,3.61,167.61,167.57,3.37]
[1752486075384,3.61,167.6,167.58,3.37]
[1752486076179,3.61,167.59,167.54,3.37]
[1752486076379,3.13442926,167.58,167.57,0.04182596]
[1752486076776,9.10102926,167.58,167.57,0.04182596]
[1752486076981,12.71102926,167.58,167.57,0.04182596]
[1752486077779,3.61,167.58,167.57,0.04182596]
[1752486078180,9.5764,167.58,167.57,0.04182596]
[1752486078786,5.9664,167.58,167.53,5.968]
[1752486078991,3.61,167.57,167.54,3.37]
[1752486079286,3.61,167.57,167.54,5.9677]
[1752486079482,5.01974107,167.6,167.42,9.83388932]
[1752486079683,3.61,167.53,167.48,3.37]
[1752486079887,3.61,167.53,167.48,3.13442926]
[1752486080083,3.61,167.53,167.52,3.40962435]
[1752486080283,3.61,167.53,167.52,9.37812435]
[1752486080581,3.61,167.53,167.52,3.40962435]
[1752486081392,0.04243512,167.55,167.52,0.03962435]
[1752486081593,0.04243512,167.55,167.53,3.37]
[1752486081788,0.04243512,167.55,167.54,6.50442926]
[1752486082096,3.61,167.62,167.55,3.37]
[1752486082292,3.61,167.62,167.6,3.37]
[1752486082492,3.61,167.62,167.61,3.37]
[1752486082689,3.61,167.62,167.59,3.37]
[1752486082898,3.61,167.62,167.49,11.9387]
[1752486082899,3.61,167.62,167.58,3.37]
[1752486083189,3.61,167.6,167.58,3.37]
[1752486083598,3.61,167.6,167.58,9.3362]
[1752486083893,3.61,167.59,167.58,9.3362]
[1752486084491,5.9654,167.61,167.57,5.9666]
[1752486084797,3.61,167.6,167.58,3.37]
[1752486085197,3.61,167.59,167.58,3.37]
[1752486085996,3.61,167.58,167.57,3.37]
[1752486091102,3.61,167.58,167.55,5.9674]
[1752486091103,3.61,167.58,167.55,3.37]
[1752486092303,3.61,167.57,167.55,3.37]
[1752486092501,3.61,167.58,167.52,3.37]
[1752486093299,3.61,167.58,167.56,3.37]
[1752486093702,3.61,167.57,167.56,3.37]
[1752486095901,3.61,167.57,167.52,3.37]
[1752486096097,3.61,167.57,167.54,5.9676]
[1752486096401,3.61,167.56,167.55,3.37]
[1752486098610,3.61,167.6,167.53,3.13442926]
[1752486098910,3.61,167.6,167.54,3.37]
[1752486099411,3.61,167.6,167.54,6.50442926]
[1752486099605,3.61,167.6,167.55,3.37]
[1752486100012,5.9659,167.6,167.57,5.9667]
[1752486100202,3.61,167.59,167.58,3.37]
[1752486100606,9.576,167.59,167.58,3.37]
[1752486101204,3.61,167.59,167.58,3.37]
[1752486102108,3.61,167.59,167.56,5.9667]
[1752486102411,3.61,167.58,167.56,3.37]
[1752486103912,3.61,167.58,167.56,9.3371]
[1752486104614,3.61,167.58,167.57,9.3367]
[1752486104814,3.61,167.58,167.57,3.37]
[1752486108019,9.5764,167.58,167.56,3.37]
[1752486108220,3.58,167.57,167.56,3.37]
[1752486111017,3.58,167.57,167.56,9.3371]
[1752486112618,5.01974107,167.61,167.57,3.37]
[1752486112920,5.01974107,167.63,167.6,3.37]
[1752486113113,5.01974107,167.63,167.62,3.37]
[1752486113510,3.58,167.64,167.62,3.37]
[1752486114216,3.58,167.64,167.63,9.3346]
[1752486117727,174.1,167.66,167.65,9.3339]
[1752486118424,177.68,167.66,167.65,9.3339]
[1752486119626,3.58,167.66,167.65,9.3339]
[1752486120426,177.68511233,167.67,167.66,9.3335]
[1752486120621,174.10511233,167.67,167.66,9.3335]
[1752486121623,177.68511233,167.67,167.66,9.3335]
[1752486121823,174.10511233,167.67,167.66,9.3335]
[1752486122021,174.10511233,167.67,167.66,12.46540574]
[1752486122631,0.04511233,167.67,167.66,12.46540574]
[1752486124528,0.04511233,167.67,167.66,9.3335]
[1752486124726,3.62511233,167.67,167.66,9.3335]
[1752486124928,0.04511233,167.67,167.66,9.3335]
[1752486125823,3.58,167.72,167.69,3.37]
[1752486126021,3.58,167.71,167.68,3.37]
[1752486126926,3.58,167.71,167.69,3.37]
[1752486127432,3.58,167.71,167.7,5.9621]
[1752486128034,3.58,167.71,167.69,9.3323]
[1752486128435,3.58,167.71,167.69,5.9623]
[1752486129732,3.58,167.71,167.69,9.3323]
[1752486130233,3.58,167.71,167.7,5.9621]
[1752486130533,3.58,167.71,167.7,9.3321]
[1752486130835,177.6,167.73,167.72,3.37]
[1752486131237,177.6,167.73,167.7,3.37]
[1752486131425,3.58,167.72,167.71,3.37]
[1752486131630,3.58,167.72,167.7,3.37]
[1752486131831,3.58,167.72,167.71,5.9618]
[1752486132338,3.58,167.72,167.71,9.3318]
[1752486134636,3.58,167.72,167.71,3.37]
[1752486137138,3.58,167.72,167.71,9.3318]
[1752486139043,3.58,167.72,167.71,3.37]
[1752486139736,3.58,167.72,167.71,9.3318]
[1752486141646,3.43,167.72,167.71,9.3318]
[1752486142237,174.02,167.73,167.71,9.3318]
[1752486142444,5.01974107,167.8,167.76,3.55]
[1752486142645,3.43,167.8,167.76,3.55]
[1752486142947,173.92,167.82,167.75,3.13190574]
[1752486143142,3.43,167.81,167.76,0.04039804]
[1752486143442,3.43,167.8,167.77,3.55]
[1752486143750,3.43,167.78,167.76,0.04039804]
[1752486144043,6.56190574,167.78,167.76,0.04039804]
[1752486144245,3.43,167.77,167.76,0.04039804]
[1752486144639,3.13190574,167.77,167.69,3.13190574]
[1752486144842,3.43,167.76,167.73,3.55]
[1752486148140,6.56190574,167.76,167.73,3.55]
[1752486148442,3.43,167.75,167.69,3.55]
[1752486148648,6.56190574,167.75,167.69,3.55]
[1752486148949,3.43,167.74,167.69,3.55]
[1752486149146,3.47102302,167.74,167.7,0.04100467]
[1752486149343,3.47102302,167.74,167.71,3.55]
[1752486150747,9.3918,167.71,167.7,3.59100467]
[1752486152144,9.3918,167.71,167.7,6.52152703]
[1752486153953,9.3918,167.71,167.56,691.86]
[1752486153954,3.43,167.68,167.62,3.55]
[1752486154451,5.9633,167.67,167.62,3.55]
[1752486154652,3.43,167.68,167.62,3.55]
[1752486155058,0.04297957,167.67,167.65,3.55]
[1752486155352,3.47297957,167.67,167.65,3.55]
[1752486155953,9.43617957,167.67,167.65,3.55]
[1752486156152,3.43,167.66,167.63,3.55]
[1752486156343,3.47297957,167.67,167.63,3.55]
[1752486156547,0.04297957,167.67,167.63,3.55]
[1752486156747,0.04297957,167.67,167.65,3.55]
[1752486157347,3.47297957,167.67,167.65,3.55]
[1752486158252,0.04297957,167.67,167.65,3.55]
[1752486158744,8.43558226,167.73,167.66,3.55]
[1752486158943,8.43558226,167.73,167.68,3.13113179]
[1752486158944,5.00558226,167.73,167.68,3.13113179]
[1752486159156,9.3907,167.74,167.71,3.55]
[1752486160149,9.3907,167.74,167.72,3.55]
[1752486160448,5.9603,167.76,167.72,3.55]
[1752486160644,3.43,167.75,167.72,3.55]
[1752486160857,3.43,167.75,167.72,9.5112]
[1752486161057,3.43,167.76,167.73,3.55]
[1752486161250,0.04268395,167.75,167.73,3.55]
[1752486161453,0.04268395,167.75,167.72,3.13113179]
[1752486161454,0.04268395,167.75,167.74,9.5107]
[1752486162252,0.04268395,167.75,167.74,3.55]
[1752486162657,0.04268395,167.75,167.74,9.5107]
[1752486164454,0.04268395,167.75,167.74,3.55]
[1752486166858,3.49268395,167.75,167.74,3.55]
[1752486168059,0.04268395,167.75,167.74,3.55]
[1752486169361,3.49268395,167.75,167.74,3.55]
[1752486169555,0.04268395,167.75,167.74,3.55]
[1752486171861,3.49268395,167.75,167.74,3.55]
[1752486172256,0.04268395,167.75,167.74,9.5107]
[1752486172758,3.45,167.78,167.74,9.5107]
[1752486172759,181.52558226,167.81,167.76,3.59]
[1752486172960,3.45,167.8,167.76,6.71767463]
[1752486173258,3.45,167.8,167.77,3.59]
[1752486173462,3.45,167.78,167.76,9.08767463]
[1752486173663,3.45,167.8,167.76,3.12767463]
[1752486173859,3.45,167.79,167.76,3.12767463]
[1752486174058,3.45,167.79,167.77,3.59]
[1752486174466,179.97,167.81,167.77,3.59]
[1752486174766,179.97,167.81,167.79,3.59]
[1752486175062,3.45,167.81,167.79,3.59]
[1752486175262,3.45,167.81,167.77,3.59]
[1752486175854,3.45,167.81,167.77,9.5496]
[1752486176057,3.45,167.81,167.78,3.59]
[1752486176561,3.45,167.81,167.79,3.59]
[1752486180161,3.45,167.81,167.78,3.59]
[1752486180363,3.45,167.81,167.76,3.59]
[1752486180559,3.45,167.81,167.77,3.59]
[1752486180759,3.45,167.84,167.77,3.59]
[1752486181066,3.45,167.84,167.79,3.59]
[1752486181559,3.45,167.84,167.79,3.635779]
[1752486181865,3.45,167.82,167.79,3.635779]
[1752486182072,3.45,167.81,167.79,3.635779]
[1752486182267,3.45,167.81,167.8,3.59]
[1752486184565,3.45,167.83,167.81,3.59]
[1752486185268,3.45,167.85,167.82,3.59]
[1752486185469,3.45,167.84,167.82,3.59]
[1752486186271,3.45,167.85,167.82,3.59]
[1752486186463,3.45,167.85,167.82,5.9575]
[1752486186663,3.45,167.85,167.83,3.59]
[1752486187061,176.4,167.86,167.83,3.59]
[1752486187261,176.4,167.86,167.81,3.17121045]